[Event "Titled Tuesday Blitz August 02 Late 2022"]
[White "Saydaliev, Saidakbar"]
[Black "Ambartsumova, Karina"]
[WhiteFideId "14203693"]
[BlackFideId "4166299"]
[WhiteElo "2265"]
[BlackElo "2262"]
[Result "1-0"]
[Round "05"]
[TimeControl "180+1"]
[Date "2022.08.02"]
[WhiteClock "0:00:45"]
[BlackClock "0:00:02"]

1. e4 {[%clk 0:03:00]}  c5 {[%clk 0:02:59]} 2. Nf3 {[%clk 0:03:00]}  e6 {[%clk 0:02:59]} 3. d4 {[%clk 0:02:59]}  cxd4 {[%clk 0:03:00]} 4. Nxd4 {[%clk 0:03:00]}  a6 {[%clk 0:03:00]} 5. Bd3 {[%clk 0:02:57]}  Bc5 {[%clk 0:03:00]} 6. Nb3 {[%clk 0:02:57]}  Ba7 {[%clk 0:03:00]} 7. O-O {[%clk 0:02:57]}  Nc6 {[%clk 0:03:00]} 8. Qe2 {[%clk 0:02:56]}  Nge7 {[%clk 0:02:56]} 9. Be3 {[%clk 0:02:56]}  Bxe3 {[%clk 0:02:56]} 10. Qxe3 {[%clk 0:02:56]}  d6 {[%clk 0:02:57]} 11. N1d2 {[%clk 0:02:55]}  O-O {[%clk 0:02:56]} 12. f4 {[%clk 0:02:55]}  b5 {[%clk 0:02:46]} 13. Rae1 {[%clk 0:02:52]}  e5 {[%clk 0:02:37]} 14. f5 {[%clk 0:02:48]}  f6 {[%clk 0:02:37]} 15. g4 {[%clk 0:02:38]}  d5 {[%clk 0:02:32]} 16. h4 {[%clk 0:02:34]}  Nb4 {[%clk 0:02:05]} 17. Kh2 {[%clk 0:02:23]}  Bb7 {[%clk 0:01:32]} 18. Rg1 {[%clk 0:02:12]}  dxe4 {[%clk 0:01:25]} 19. Nxe4 {[%clk 0:01:59]}  Nbd5 {[%clk 0:01:22]} 20. Qf2 {[%clk 0:01:30]}  Nf4 {[%clk 0:01:22]} 21. Rg3 {[%clk 0:01:26]}  Rc8 {[%clk 0:01:06]} 22. Nbc5 {[%clk 0:01:20]}  Qb6 {[%clk 0:01:05]} 23. b4 {[%clk 0:01:15]}  a5 {[%clk 0:00:39]} 24. a3 {[%clk 0:01:14]}  axb4 {[%clk 0:00:39]} 25. axb4 {[%clk 0:01:13]}  Ned5 {[%clk 0:00:33]} 26. g5 {[%clk 0:01:09]}  fxg5 {[%clk 0:00:29]} 27. Rxg5 {[%clk 0:01:08]}  Nxd3 {[%clk 0:00:20]} 28. cxd3 {[%clk 0:01:05]}  Nf4 {[%clk 0:00:20]} 29. Reg1 {[%clk 0:01:01]}  Kh8 {[%clk 0:00:10]} 30. Rxg7 {[%clk 0:00:57]}  Bd5 {[%clk 0:00:06]} 31. Qg3 {[%clk 0:00:55]}  Rg8 {[%clk 0:00:05]} 32. f6 {[%clk 0:00:51]}  Ng6 {[%clk 0:00:03]} 33. Qg5 {[%clk 0:00:50]}  Rxg7 {[%clk 0:00:03]} 34. fxg7+ {[%clk 0:00:48]}  Kxg7 {[%clk 0:00:03]} 35. h5 {[%clk 0:00:47]}  Rf8 {[%clk 0:00:02]} 36. Qxe5+ {[%clk 0:00:45]}  Kg8 {[%clk 0:00:02]} 37. Qxd5+ {[%clk 0:00:45]} 1-0


[Site "https://www.chess.com"]

[Event "Titled Tuesday Blitz August 02 Late 2022"]
[White "Sjugirov, Sanan"]
[Black "Perera Alfonso, Rene Humberto"]
[WhiteFideId "4189302"]
[BlackFideId "3514722"]
[WhiteElo "2609"]
[BlackElo "2313"]
[Result "1/2-1/2"]
[Round "05"]
[TimeControl "180+1"]
[Date "2022.08.02"]
[WhiteClock "0:00:04"]
[BlackClock "0:00:10"]

1. d4 {[%clk 0:03:00]}  d5 {[%clk 0:02:59]} 2. c4 {[%clk 0:03:01]}  c6 {[%clk 0:02:59]} 3. Nf3 {[%clk 0:03:01]}  Nf6 {[%clk 0:02:59]} 4. e3 {[%clk 0:03:02]}  Bg4 {[%clk 0:02:58]} 5. Qb3 {[%clk 0:03:01]}  Bxf3 {[%clk 0:02:56]} 6. gxf3 {[%clk 0:03:01]}  Qb6 {[%clk 0:02:56]} 7. Nc3 {[%clk 0:03:02]}  e6 {[%clk 0:02:56]} 8. e4 {[%clk 0:02:59]}  dxc4 {[%clk 0:02:28]} 9. Bxc4 {[%clk 0:02:56]}  Be7 {[%clk 0:02:26]} 10. Be3 {[%clk 0:02:55]}  O-O {[%clk 0:02:24]} 11. O-O-O {[%clk 0:02:52]}  Nbd7 {[%clk 0:02:23]} 12. Kb1 {[%clk 0:02:51]}  Rfc8 {[%clk 0:02:14]} 13. Rhg1 {[%clk 0:02:49]}  Qxb3 {[%clk 0:02:10]} 14. Bxb3 {[%clk 0:02:49]}  a5 {[%clk 0:02:01]} 15. Bg5 {[%clk 0:02:43]}  Bb4 {[%clk 0:01:58]} 16. e5 {[%clk 0:02:33]}  Nd5 {[%clk 0:01:51]} 17. Ne4 {[%clk 0:02:33]}  a4 {[%clk 0:01:37]} 18. Bc2 {[%clk 0:02:32]}  Nf8 {[%clk 0:01:25]} 19. h4 {[%clk 0:02:21]}  a3 {[%clk 0:01:21]} 20. b3 {[%clk 0:02:19]}  Ng6 {[%clk 0:01:13]} 21. h5 {[%clk 0:02:18]}  Ngf4 {[%clk 0:01:13]} 22. Bxf4 {[%clk 0:01:20]}  Nxf4 {[%clk 0:01:14]} 23. Rg4 {[%clk 0:01:20]}  Ne2 {[%clk 0:01:03]} 24. Rd3 {[%clk 0:01:03]}  c5 {[%clk 0:00:27]} 25. dxc5 {[%clk 0:01:02]}  Rd8 {[%clk 0:00:20]} 26. Nf6+ {[%clk 0:00:58]}  Kh8 {[%clk 0:00:20]} 27. Rxb4 {[%clk 0:00:54]}  gxf6 {[%clk 0:00:20]} 28. exf6 {[%clk 0:00:52]}  Rxd3 {[%clk 0:00:17]} 29. Bxd3 {[%clk 0:00:52]}  Nc3+ {[%clk 0:00:17]} 30. Kc2 {[%clk 0:00:07]}  Nxa2 {[%clk 0:00:17]} 31. Rxb7 {[%clk 0:00:07]}  Nb4+ {[%clk 0:00:14]} 32. Kb1 {[%clk 0:00:08]}  a2+ {[%clk 0:00:13]} 33. Ka1 {[%clk 0:00:08]}  Nxd3 {[%clk 0:00:13]} 34. Rd7 {[%clk 0:00:04]}  Nb4 {[%clk 0:00:12]} 35. Rd2 {[%clk 0:00:04]}  Nd5 {[%clk 0:00:10]} 36. Rc2 {[%clk 0:00:03]}  Nxf6 {[%clk 0:00:10]} 37. c6 {[%clk 0:00:03]}  Rc8 {[%clk 0:00:10]} 38. b4 {[%clk 0:00:03]}  Nd5 {[%clk 0:00:11]} 39. b5 {[%clk 0:00:03]}  Kg8 {[%clk 0:00:11]} 40. Rxa2 {[%clk 0:00:03]}  Kf8 {[%clk 0:00:11]} 41. Ra7 {[%clk 0:00:02]}  Rb8 {[%clk 0:00:10]} 42. Ra5 {[%clk 0:00:01]}  Ke7 {[%clk 0:00:08]} 43. Kb2 {[%clk 0:00:01]}  Kd6 {[%clk 0:00:08]} 44. Kc2 {[%clk 0:00:01]}  Kc7 {[%clk 0:00:08]} 45. Ra7+ {[%clk 0:00:01]}  Kb6 {[%clk 0:00:09]} 46. Rxf7 {[%clk 0:00:02]}  Kxb5 {[%clk 0:00:08]} 47. c7 {[%clk 0:00:02]}  Rc8 {[%clk 0:00:08]} 48. Kd3 {[%clk 0:00:03]}  Nxc7 {[%clk 0:00:08]} 49. Rxh7 {[%clk 0:00:03]}  Kc5 {[%clk 0:00:08]} 50. Ke4 {[%clk 0:00:03]}  Kd6 {[%clk 0:00:08]} 51. Rg7 {[%clk 0:00:03]}  Nd5 {[%clk 0:00:08]} 52. h6 {[%clk 0:00:03]}  Rh8 {[%clk 0:00:09]} 53. Rg6 {[%clk 0:00:03]}  Ne7 {[%clk 0:00:09]} 54. Rf6 {[%clk 0:00:03]}  Nf5 {[%clk 0:00:09]} 55. Kf4 {[%clk 0:00:02]}  Rxh6 {[%clk 0:00:08]} 56. Rf8 {[%clk 0:00:03]}  Rh4+ {[%clk 0:00:08]} 57. Kg5 {[%clk 0:00:03]}  Rb4 {[%clk 0:00:09]} 58. f4 {[%clk 0:00:04]}  Rb2 {[%clk 0:00:08]} 59. Kf6 {[%clk 0:00:04]}  Rxf2 {[%clk 0:00:05]} 60. Rd8+ {[%clk 0:00:04]}  Kc5 {[%clk 0:00:05]} 61. Kxe6 {[%clk 0:00:04]}  Nd4+ {[%clk 0:00:05]} 62. Kf7 {[%clk 0:00:03]}  Rxf4+ {[%clk 0:00:05]} 63. Kg6 {[%clk 0:00:03]}  Rf1 {[%clk 0:00:04]} 64. Ra8 {[%clk 0:00:03]}  Kd5 {[%clk 0:00:05]} 65. Ra5+ {[%clk 0:00:03]}  Ke4 {[%clk 0:00:05]} 66. Ra8 {[%clk 0:00:03]}  Kd5 {[%clk 0:00:05]} 67. Ra5+ {[%clk 0:00:03]}  Ke6 {[%clk 0:00:05]} 68. Ra8 {[%clk 0:00:04]}  Rg1+ {[%clk 0:00:05]} 69. Kh5 {[%clk 0:00:04]}  Nf5 {[%clk 0:00:06]} 70. Ra6+ {[%clk 0:00:04]}  Ke5 {[%clk 0:00:06]} 71. Ra5+ {[%clk 0:00:04]}  Ke4 {[%clk 0:00:07]} 72. Ra4+ {[%clk 0:00:04]}  Nd4 {[%clk 0:00:07]} 73. Kh6 {[%clk 0:00:04]}  Rg4 {[%clk 0:00:07]} 74. Ra8 {[%clk 0:00:04]}  Kf5 {[%clk 0:00:06]} 75. Ra5+ {[%clk 0:00:04]}  Kf4 {[%clk 0:00:05]} 76. Ra8 {[%clk 0:00:04]}  Kf5 {[%clk 0:00:05]} 77. Rf8+ {[%clk 0:00:03]}  Ke6 {[%clk 0:00:05]} 78. Rf2 {[%clk 0:00:03]}  Nf5+ {[%clk 0:00:04]} 79. Kh5 {[%clk 0:00:03]}  Rg1 {[%clk 0:00:05]} 80. Ra2 {[%clk 0:00:03]}  Kf6 {[%clk 0:00:05]} 81. Ra6+ {[%clk 0:00:03]}  Ke5 {[%clk 0:00:05]} 82. Ra5+ {[%clk 0:00:04]}  Kf4 {[%clk 0:00:06]} 83. Ra4+ {[%clk 0:00:04]}  Kf3 {[%clk 0:00:06]} 84. Ra3+ {[%clk 0:00:04]}  Ne3 {[%clk 0:00:07]} 85. Kh6 {[%clk 0:00:04]}  Rg8 {[%clk 0:00:08]} 86. Kh7 {[%clk 0:00:04]}  Rg3 {[%clk 0:00:08]} 87. Ra6 {[%clk 0:00:04]}  Kf4 {[%clk 0:00:09]} 88. Ra4+ {[%clk 0:00:04]}  Kf5 {[%clk 0:00:09]} 89. Ra5+ {[%clk 0:00:05]}  Ke4 {[%clk 0:00:09]} 90. Ra4+ {[%clk 0:00:05]}  Ke5 {[%clk 0:00:09]} 91. Ra3 {[%clk 0:00:04]}  Rh3+ {[%clk 0:00:08]} 92. Kg6 {[%clk 0:00:04]}  Rg3+ {[%clk 0:00:08]} 93. Kf7 {[%clk 0:00:04]}  Kf4 {[%clk 0:00:08]} 94. Ra4+ {[%clk 0:00:04]}  Kf3 {[%clk 0:00:09]} 95. Ra6 {[%clk 0:00:04]}  Rg4 {[%clk 0:00:09]} 96. Rf6+ {[%clk 0:00:03]}  Ke4 {[%clk 0:00:09]} 97. Ra6 {[%clk 0:00:04]}  Nd5 {[%clk 0:00:09]} 98. Ra4+ {[%clk 0:00:04]}  Kf5 {[%clk 0:00:09]} 99. Rxg4 {[%clk 0:00:04]}  Kxg4 {[%clk 0:00:10]} 1/2-1/2


[Site "https://www.chess.com"]

[Event "Titled Tuesday Blitz August 02 Late 2022"]
[White "Szalay, Karoly"]
[Black "Lobanov, Sergei"]
[WhiteFideId "2600544"]
[BlackFideId "24183750"]
[WhiteElo "2561"]
[BlackElo "2524"]
[Result "0-1"]
[Round "05"]
[TimeControl "180+1"]
[Date "2022.08.02"]
[WhiteClock "0:00:08"]
[BlackClock "0:00:08"]

1. e4 {[%clk 0:02:55]}  e5 {[%clk 0:03:00]} 2. Nf3 {[%clk 0:02:53]}  Nc6 {[%clk 0:03:00]} 3. Nc3 {[%clk 0:02:51]}  Nf6 {[%clk 0:02:59]} 4. Bb5 {[%clk 0:02:50]}  Bd6 {[%clk 0:02:59]} 5. d3 {[%clk 0:02:49]}  O-O {[%clk 0:02:55]} 6. Ne2 {[%clk 0:02:44]}  a6 {[%clk 0:02:37]} 7. Ba4 {[%clk 0:02:39]}  b5 {[%clk 0:02:33]} 8. Bb3 {[%clk 0:02:33]}  Na5 {[%clk 0:02:33]} 9. Ng3 {[%clk 0:02:26]}  Re8 {[%clk 0:02:20]} 10. O-O {[%clk 0:02:23]}  Bf8 {[%clk 0:02:12]} 11. Re1 {[%clk 0:02:14]}  g6 {[%clk 0:01:56]} 12. c3 {[%clk 0:01:39]}  Nxb3 {[%clk 0:01:56]} 13. Qxb3 {[%clk 0:01:38]}  Bg7 {[%clk 0:01:52]} 14. Ng5 {[%clk 0:01:37]}  d5 {[%clk 0:01:48]} 15. f4 {[%clk 0:01:37]}  exf4 {[%clk 0:01:19]} 16. Bxf4 {[%clk 0:01:38]}  h6 {[%clk 0:01:19]} 17. Nf3 {[%clk 0:01:27]}  dxe4 {[%clk 0:01:18]} 18. Nxe4 {[%clk 0:01:22]}  Nxe4 {[%clk 0:01:17]} 19. Rxe4 {[%clk 0:01:22]}  Rxe4 {[%clk 0:01:16]} 20. dxe4 {[%clk 0:01:22]}  Be6 {[%clk 0:01:10]} 21. Qb4 {[%clk 0:01:23]}  Qd3 {[%clk 0:01:07]} 22. Bxc7 {[%clk 0:01:17]}  Rc8 {[%clk 0:01:06]} 23. Bg3 {[%clk 0:01:16]}  Rc4 {[%clk 0:01:03]} 24. Qa5 {[%clk 0:01:03]}  Rxe4 {[%clk 0:01:01]} 25. Qxa6 {[%clk 0:01:04]}  Re2 {[%clk 0:01:01]} 26. Re1 {[%clk 0:00:41]}  Rxb2 {[%clk 0:01:00]} 27. Nd4 {[%clk 0:00:33]}  Bd5 {[%clk 0:00:47]} 28. Qc8+ {[%clk 0:00:27]}  Kh7 {[%clk 0:00:46]} 29. Bf2 {[%clk 0:00:26]}  Rb1 {[%clk 0:00:38]} 30. Qh3 {[%clk 0:00:15]}  Rxe1+ {[%clk 0:00:18]} 31. Bxe1 {[%clk 0:00:16]}  Qb1 {[%clk 0:00:17]} 32. Qe3 {[%clk 0:00:14]}  Qxa2 {[%clk 0:00:16]} 33. Bf2 {[%clk 0:00:15]}  Qb1+ {[%clk 0:00:13]} 34. Qe1 {[%clk 0:00:15]}  Qd3 {[%clk 0:00:14]} 35. h3 {[%clk 0:00:15]}  b4 {[%clk 0:00:12]} 36. Qe2 {[%clk 0:00:10]}  Qxe2 {[%clk 0:00:11]} 37. Nxe2 {[%clk 0:00:11]}  b3 {[%clk 0:00:09]} 38. c4 {[%clk 0:00:07]}  b2 {[%clk 0:00:09]} 39. cxd5 {[%clk 0:00:08]}  b1=Q+ {[%clk 0:00:09]} 40. Kh2 {[%clk 0:00:09]}  Qe4 {[%clk 0:00:08]} 41. Ng3 {[%clk 0:00:08]}  Be5 {[%clk 0:00:08]} 42. d6 {[%clk 0:00:08]}  Bxd6 {[%clk 0:00:08]} 0-1


[Site "https://www.chess.com"]

[Event "Titled Tuesday Blitz August 02 Late 2022"]
[White "Tanenbaum, Zachary"]
[Black "Zhigalko, Sergei"]
[WhiteFideId "2060850"]
[BlackFideId "13502956"]
[WhiteElo "2175"]
[BlackElo "2662"]
[Result "0-1"]
[Round "05"]
[TimeControl "180+1"]
[Date "2022.08.02"]
[WhiteClock "0:00:07"]
[BlackClock "0:00:08"]

1. e4 {[%clk 0:03:00]}  c5 {[%clk 0:02:58]} 2. Nf3 {[%clk 0:03:01]}  Nc6 {[%clk 0:02:58]} 3. Nc3 {[%clk 0:03:01]}  Nf6 {[%clk 0:02:58]} 4. Bb5 {[%clk 0:02:57]}  Qc7 {[%clk 0:02:58]} 5. O-O {[%clk 0:02:58]}  Nd4 {[%clk 0:02:58]} 6. Re1 {[%clk 0:02:58]}  a6 {[%clk 0:02:58]} 7. Bf1 {[%clk 0:02:58]}  Ng4 {[%clk 0:02:58]} 8. g3 {[%clk 0:02:58]}  Nxf3+ {[%clk 0:02:58]} 9. Qxf3 {[%clk 0:02:59]}  Ne5 {[%clk 0:02:59]} 10. Qe2 {[%clk 0:02:57]}  e6 {[%clk 0:03:00]} 11. d3 {[%clk 0:02:56]}  d6 {[%clk 0:02:58]} 12. f4 {[%clk 0:02:55]}  Nc6 {[%clk 0:02:58]} 13. Be3 {[%clk 0:02:52]}  Be7 {[%clk 0:02:58]} 14. Bg2 {[%clk 0:02:51]}  O-O {[%clk 0:02:57]} 15. g4 {[%clk 0:02:50]}  b5 {[%clk 0:02:46]} 16. g5 {[%clk 0:02:47]}  b4 {[%clk 0:02:45]} 17. Nd1 {[%clk 0:02:44]}  f6 {[%clk 0:02:29]} 18. c3 {[%clk 0:02:31]}  fxg5 {[%clk 0:02:27]} 19. fxg5 {[%clk 0:02:30]}  a5 {[%clk 0:02:25]} 20. Nf2 {[%clk 0:02:29]}  Ne5 {[%clk 0:02:22]} 21. Ng4 {[%clk 0:02:21]}  Ng6 {[%clk 0:02:02]} 22. Rf1 {[%clk 0:02:14]}  Bd7 {[%clk 0:01:58]} 23. Rxf8+ {[%clk 0:01:59]}  Rxf8 {[%clk 0:01:56]} 24. Rf1 {[%clk 0:02:00]}  Rxf1+ {[%clk 0:01:47]} 25. Qxf1 {[%clk 0:02:01]}  Qd8 {[%clk 0:01:47]} 26. Qc1 {[%clk 0:01:48]}  e5 {[%clk 0:01:34]} 27. Bf3 {[%clk 0:01:40]}  Be6 {[%clk 0:00:59]} 28. c4 {[%clk 0:01:20]}  Qd7 {[%clk 0:00:55]} 29. Qd1 {[%clk 0:01:19]}  Qd8 {[%clk 0:00:48]} 30. Qd2 {[%clk 0:01:17]}  a4 {[%clk 0:00:32]} 31. Bd1 {[%clk 0:01:06]}  a3 {[%clk 0:00:31]} 32. b3 {[%clk 0:01:06]}  Kh8 {[%clk 0:00:22]} 33. Bf3 {[%clk 0:01:04]}  Nh4 {[%clk 0:00:15]} 34. Be2 {[%clk 0:01:04]}  Qc8 {[%clk 0:00:13]} 35. Qd1 {[%clk 0:01:02]}  Qd8 {[%clk 0:00:13]} 36. Qd2 {[%clk 0:01:01]}  Qf8 {[%clk 0:00:13]} 37. Qd1 {[%clk 0:00:58]}  Qf7 {[%clk 0:00:13]} 38. h3 {[%clk 0:00:40]}  Qg6 {[%clk 0:00:11]} 39. Qd2 {[%clk 0:00:40]}  Qf7 {[%clk 0:00:11]} 40. Qd1 {[%clk 0:00:39]}  Kg8 {[%clk 0:00:11]} 41. Qf1 {[%clk 0:00:38]}  Qg6 {[%clk 0:00:09]} 42. Qc1 {[%clk 0:00:30]}  Qe8 {[%clk 0:00:09]} 43. Qe1 {[%clk 0:00:29]}  Ng6 {[%clk 0:00:09]} 44. Qf2 {[%clk 0:00:27]}  Qc8 {[%clk 0:00:08]} 45. Qg3 {[%clk 0:00:24]}  Qf8 {[%clk 0:00:06]} 46. h4 {[%clk 0:00:23]}  Qf7 {[%clk 0:00:05]} 47. Kg2 {[%clk 0:00:19]}  Bd8 {[%clk 0:00:04]} 48. Qf2 {[%clk 0:00:18]}  Qxf2+ {[%clk 0:00:03]} 49. Bxf2 {[%clk 0:00:17]}  Nf4+ {[%clk 0:00:03]} 50. Kf3 {[%clk 0:00:14]}  Nxe2 {[%clk 0:00:04]} 51. Kxe2 {[%clk 0:00:14]}  Bxg4+ {[%clk 0:00:04]} 52. Kd2 {[%clk 0:00:14]}  Kf7 {[%clk 0:00:04]} 53. Be3 {[%clk 0:00:13]}  Kg6 {[%clk 0:00:04]} 54. Bf2 {[%clk 0:00:14]}  Kh5 {[%clk 0:00:04]} 55. Bg3 {[%clk 0:00:14]}  h6 {[%clk 0:00:04]} 56. gxh6 {[%clk 0:00:14]}  gxh6 {[%clk 0:00:05]} 57. Kc2 {[%clk 0:00:14]}  Bxh4 {[%clk 0:00:05]} 58. Bh2 {[%clk 0:00:14]}  Bg5 {[%clk 0:00:06]} 59. Bg3 {[%clk 0:00:13]}  Bf4 {[%clk 0:00:06]} 60. Bf2 {[%clk 0:00:12]}  Kg5 {[%clk 0:00:06]} 61. d4 {[%clk 0:00:11]}  exd4 {[%clk 0:00:07]} 62. e5 {[%clk 0:00:09]}  dxe5 {[%clk 0:00:08]} 63. Kb1 {[%clk 0:00:10]}  h5 {[%clk 0:00:08]} 64. Ka1 {[%clk 0:00:08]}  h4 {[%clk 0:00:07]} 65. Bg1 {[%clk 0:00:08]}  h3 {[%clk 0:00:08]} 66. Bf2 {[%clk 0:00:08]}  h2 {[%clk 0:00:07]} 67. Be1 {[%clk 0:00:08]}  h1=Q {[%clk 0:00:07]} 68. Kb1 {[%clk 0:00:07]}  Bf5+ {[%clk 0:00:07]} 69. Ka1 {[%clk 0:00:07]}  Qxe1# {[%clk 0:00:08]} 0-1


[Site "https://www.chess.com"]

[Event "Titled Tuesday Blitz August 02 Late 2022"]
[White "Vasquez Schroeder, Rodrigo"]
[Black "Maltsevskaya, Aleksandra"]
[WhiteFideId "3400042"]
[BlackFideId "24174041"]
[WhiteElo "2567"]
[BlackElo "2243"]
[Result "1-0"]
[Round "05"]
[TimeControl "180+1"]
[Date "2022.08.02"]
[WhiteClock "0:00:50"]
[BlackClock "0:00:01"]

1. e4 {[%clk 0:03:00]}  c5 {[%clk 0:02:35]} 2. Nf3 {[%clk 0:03:00]}  e6 {[%clk 0:02:35]} 3. d4 {[%clk 0:03:00]}  cxd4 {[%clk 0:02:35]} 4. Nxd4 {[%clk 0:03:00]}  Nf6 {[%clk 0:02:35]} 5. Nc3 {[%clk 0:03:00]}  Nc6 {[%clk 0:02:36]} 6. Ndb5 {[%clk 0:02:57]}  Bc5 {[%clk 0:02:35]} 7. Bf4 {[%clk 0:02:56]}  O-O {[%clk 0:02:34]} 8. Bd6 {[%clk 0:02:55]}  Bxd6 {[%clk 0:02:33]} 9. Nxd6 {[%clk 0:02:50]}  a6 {[%clk 0:02:32]} 10. Qd2 {[%clk 0:02:40]}  b5 {[%clk 0:02:28]} 11. Be2 {[%clk 0:02:38]}  Ne8 {[%clk 0:02:15]} 12. O-O {[%clk 0:02:33]}  Nxd6 {[%clk 0:01:53]} 13. Qxd6 {[%clk 0:02:32]}  Bb7 {[%clk 0:01:44]} 14. Rfd1 {[%clk 0:02:30]}  Rc8 {[%clk 0:01:42]} 15. e5 {[%clk 0:02:07]}  Qg5 {[%clk 0:01:30]} 16. Bf3 {[%clk 0:02:02]}  Ba8 {[%clk 0:01:25]} 17. Re1 {[%clk 0:01:57]}  Qe7 {[%clk 0:01:03]} 18. Ne4 {[%clk 0:01:52]}  Rfd8 {[%clk 0:00:54]} 19. Rad1 {[%clk 0:01:50]}  Qxd6 {[%clk 0:00:52]} 20. Nxd6 {[%clk 0:01:50]}  Rc7 {[%clk 0:00:53]} 21. c3 {[%clk 0:01:49]}  Kf8 {[%clk 0:00:52]} 22. Be4 {[%clk 0:01:47]}  Ke7 {[%clk 0:00:49]} 23. f4 {[%clk 0:01:46]}  f5 {[%clk 0:00:47]} 24. Bxc6 {[%clk 0:01:37]}  Bxc6 {[%clk 0:00:46]} 25. Rd4 {[%clk 0:01:37]}  h6 {[%clk 0:00:41]} 26. g3 {[%clk 0:01:35]}  g5 {[%clk 0:00:40]} 27. Kf2 {[%clk 0:01:35]}  a5 {[%clk 0:00:35]} 28. a3 {[%clk 0:01:35]}  Rb8 {[%clk 0:00:33]} 29. Re3 {[%clk 0:01:28]}  Bd5 {[%clk 0:00:28]} 30. Nxf5+ {[%clk 0:01:27]}  exf5 {[%clk 0:00:28]} 31. Rxd5 {[%clk 0:01:27]}  b4 {[%clk 0:00:29]} 32. axb4 {[%clk 0:01:24]}  axb4 {[%clk 0:00:30]} 33. Rd2 {[%clk 0:01:22]}  gxf4 {[%clk 0:00:24]} 34. gxf4 {[%clk 0:01:22]}  bxc3 {[%clk 0:00:20]} 35. bxc3 {[%clk 0:01:18]}  Rc4 {[%clk 0:00:20]} 36. Rd4 {[%clk 0:01:17]}  Rb2+ {[%clk 0:00:16]} 37. Kf3 {[%clk 0:01:09]}  Rxd4 {[%clk 0:00:16]} 38. cxd4 {[%clk 0:01:09]}  Rd2 {[%clk 0:00:16]} 39. Ra3 {[%clk 0:01:01]}  Rxd4 {[%clk 0:00:16]} 40. Ra6 {[%clk 0:01:01]}  d6 {[%clk 0:00:12]} 41. Ra7+ {[%clk 0:01:00]}  Ke6 {[%clk 0:00:12]} 42. exd6 {[%clk 0:01:00]}  Rd3+ {[%clk 0:00:10]} 43. Kf2 {[%clk 0:01:00]}  Kxd6 {[%clk 0:00:09]} 44. Ra5 {[%clk 0:00:57]}  Ke6 {[%clk 0:00:08]} 45. Kg2 {[%clk 0:00:53]}  h5 {[%clk 0:00:05]} 46. Re5+ {[%clk 0:00:51]}  Kf6 {[%clk 0:00:05]} 47. Rc5 {[%clk 0:00:50]}  Ke6 {[%clk 0:00:04]} 48. Re5+ {[%clk 0:00:49]}  Kf6 {[%clk 0:00:04]} 49. Kf2 {[%clk 0:00:50]}  Rd4 {[%clk 0:00:03]} 50. Ke3 {[%clk 0:00:49]}  Ra4 {[%clk 0:00:02]} 51. Rd5 {[%clk 0:00:49]}  Ra3+ {[%clk 0:00:03]} 52. Rd3 {[%clk 0:00:50]}  Rxd3+ {[%clk 0:00:03]} 53. Kxd3 {[%clk 0:00:50]}  Ke6 {[%clk 0:00:01]} 54. Kc4 {[%clk 0:00:50]}  Kd6 {[%clk 0:00:01]} 55. Kd4 {[%clk 0:00:50]}  h4 {[%clk 0:00:01]} 56. h3 {[%clk 0:00:50]}  Ke6 {[%clk 0:00:01]} 57. Kc5 {[%clk 0:00:50]} 1-0


[Site "https://www.chess.com"]

[Event "Titled Tuesday Blitz August 02 Late 2022"]
[White "Yanchenko, Roman"]
[Black "Riehle, Marco"]
[WhiteFideId "4137329"]
[BlackFideId "12904392"]
[WhiteElo "2514"]
[BlackElo "2462"]
[Result "1/2-1/2"]
[Round "05"]
[TimeControl "180+1"]
[Date "2022.08.02"]
[WhiteClock "0:00:39"]
[BlackClock "0:00:34"]

1. d4 {[%clk 0:03:00]}  d5 {[%clk 0:02:59]} 2. c4 {[%clk 0:03:01]}  e6 {[%clk 0:02:59]} 3. Nc3 {[%clk 0:03:01]}  c5 {[%clk 0:02:59]} 4. cxd5 {[%clk 0:03:01]}  cxd4 {[%clk 0:02:59]} 5. Qxd4 {[%clk 0:03:01]}  Nc6 {[%clk 0:02:59]} 6. Qa4 {[%clk 0:03:01]}  exd5 {[%clk 0:03:00]} 7. Nf3 {[%clk 0:03:01]}  d4 {[%clk 0:02:59]} 8. Ne4 {[%clk 0:03:01]}  Nf6 {[%clk 0:02:58]} 9. Nxf6+ {[%clk 0:03:01]}  Qxf6 {[%clk 0:02:58]} 10. g3 {[%clk 0:03:01]}  Bb4+ {[%clk 0:02:56]} 11. Bd2 {[%clk 0:03:01]}  Bxd2+ {[%clk 0:02:56]} 12. Nxd2 {[%clk 0:03:02]}  O-O {[%clk 0:02:57]} 13. Bg2 {[%clk 0:03:02]}  Re8 {[%clk 0:02:57]} 14. O-O {[%clk 0:02:11]}  Rxe2 {[%clk 0:02:54]} 15. Rae1 {[%clk 0:02:07]}  Bg4 {[%clk 0:02:43]} 16. Ne4 {[%clk 0:02:04]}  Qg6 {[%clk 0:02:41]} 17. Nc5 {[%clk 0:02:03]}  Rae8 {[%clk 0:02:29]} 18. Rc1 {[%clk 0:01:34]}  Bc8 {[%clk 0:01:40]} 19. Nxb7 {[%clk 0:01:03]}  Bxb7 {[%clk 0:01:41]} 20. Bxc6 {[%clk 0:01:03]}  Bxc6 {[%clk 0:01:40]} 21. Rxc6 {[%clk 0:01:03]}  Qd3 {[%clk 0:01:38]} 22. Rcc1 {[%clk 0:00:55]}  h6 {[%clk 0:01:29]} 23. Rcd1 {[%clk 0:00:53]}  Qc2 {[%clk 0:01:25]} 24. Rxd4 {[%clk 0:00:50]}  Qxb2 {[%clk 0:01:20]} 25. Qxa7 {[%clk 0:00:43]}  Qxa2 {[%clk 0:01:15]} 26. Qxa2 {[%clk 0:00:42]}  Rxa2 {[%clk 0:01:16]} 27. Rf4 {[%clk 0:00:40]}  g5 {[%clk 0:01:13]} 28. Rb4 {[%clk 0:00:39]}  Kg7 {[%clk 0:01:11]} 29. h4 {[%clk 0:00:39]}  f6 {[%clk 0:01:07]} 30. hxg5 {[%clk 0:00:40]}  hxg5 {[%clk 0:01:06]} 31. Kg2 {[%clk 0:00:40]}  Kg6 {[%clk 0:01:03]} 32. g4 {[%clk 0:00:40]}  Ree2 {[%clk 0:01:00]} 33. Rc4 {[%clk 0:00:40]}  Reb2 {[%clk 0:00:56]} 34. Rd4 {[%clk 0:00:40]}  Rb6 {[%clk 0:00:56]} 35. Re4 {[%clk 0:00:41]}  Rb3 {[%clk 0:00:53]} 36. Rd4 {[%clk 0:00:40]}  Rc2 {[%clk 0:00:51]} 37. Rh1 {[%clk 0:00:39]}  Rbb2 {[%clk 0:00:47]} 38. Rf1 {[%clk 0:00:39]}  Rc3 {[%clk 0:00:47]} 39. Re4 {[%clk 0:00:39]}  Rbc2 {[%clk 0:00:46]} 40. Rh1 {[%clk 0:00:39]}  Rc4 {[%clk 0:00:45]} 41. Rxc4 {[%clk 0:00:39]}  Rxc4 {[%clk 0:00:46]} 42. Kg3 {[%clk 0:00:39]}  f5 {[%clk 0:00:38]} 43. gxf5+ {[%clk 0:00:39]}  Kxf5 {[%clk 0:00:39]} 44. f3 {[%clk 0:00:39]}  Rc2 {[%clk 0:00:36]} 45. Ra1 {[%clk 0:00:39]}  Rb2 {[%clk 0:00:36]} 46. Ra5+ {[%clk 0:00:39]}  Kg6 {[%clk 0:00:36]} 47. Rc5 {[%clk 0:00:39]}  Ra2 {[%clk 0:00:34]} 1/2-1/2


[Site "https://www.chess.com"]